[Event "Late-Titled-Tuesday-Blitz-September-26-2023"]
[Site "Chess.com"]
[Date "2023.09.26"]
[Round "10"]
[White "2k28Lakers"]
[Black "acertijo08"]
[Result "1-0"]
[WhiteElo "2570"]
[BlackElo "2407"]
[TimeControl "180+1"]
[EndTime "15:52:14 PDT"]
[Termination "2k28Lakers won by resignation"]

1. e4 {[%clk 0:03:00.9]} 1... c5 {[%clk 0:02:59.4]} 2. c3 {[%clk 0:03:00.2]}
2... Nf6 {[%clk 0:02:58]} 3. e5 {[%clk 0:03:00.3]} 3... Nd5 {[%clk 0:02:58.6]}
4. Nf3 {[%clk 0:03:00.9]} 4... e6 {[%clk 0:02:58.6]} 5. Bc4 {[%clk 0:03:01.1]}
5... Nb6 {[%clk 0:02:54.1]} 6. Bb3 {[%clk 0:03:00.9]} 6... c4 {[%clk 0:02:54.5]}
7. Bc2 {[%clk 0:03:00.5]} 7... d6 {[%clk 0:02:54.4]} 8. exd6 {[%clk 0:03:00.1]}
8... Bxd6 {[%clk 0:02:53.7]} 9. O-O {[%clk 0:03:01]} 9... O-O {[%clk 0:02:49.9]}
10. d4 {[%clk 0:03:00.7]} 10... cxd3 {[%clk 0:02:49.7]} 11. Qxd3 {[%clk
0:03:00.3]} 11... g6 {[%clk 0:02:48.8]} 12. Bh6 {[%clk 0:02:59.5]} 12... Re8
{[%clk 0:02:48.5]} 13. Rd1 {[%clk 0:02:56.9]} 13... Be7 {[%clk 0:02:38.9]} 14.
Qe4 {[%clk 0:02:46.8]} 14... Qc7 {[%clk 0:02:30]} 15. Na3 {[%clk 0:02:43.9]}
15... Bd7 {[%clk 0:02:22.3]} 16. Ne5 {[%clk 0:02:35.4]} 16... Bc6 {[%clk
0:02:09.6]} 17. Qf4 {[%clk 0:02:27.3]} 17... Bf8 {[%clk 0:01:35.3]} 18. Bxf8
{[%clk 0:01:17.5]} 18... Rxf8 {[%clk 0:01:34.8]} 19. Nxg6 {[%clk 0:01:13.7]}
19... Qxf4 {[%clk 0:01:34.5]} 20. Nxf4 {[%clk 0:01:14.6]} 20... N8d7 {[%clk
0:01:31.6]} 21. Rd3 {[%clk 0:01:06.1]} 21... Kh8 {[%clk 0:01:25.9]} 22. Rh3
{[%clk 0:01:03.9]} 22... Nf6 {[%clk 0:01:24.2]} 23. Rd1 {[%clk 0:00:53.9]} 23...
Rad8 {[%clk 0:01:23.1]} 24. Rhd3 {[%clk 0:00:42.7]} 24... Rxd3 {[%clk 0:01:20]}
25. Rxd3 {[%clk 0:00:43.6]} 25... Rg8 {[%clk 0:01:15.6]} 26. Rg3 {[%clk
0:00:31.9]} 26... Rd8 {[%clk 0:01:08.5]} 27. Nb1 {[%clk 0:00:28]} 27... Nc4
{[%clk 0:01:03.9]} 28. b3 {[%clk 0:00:23.4]} 28... Ne5 {[%clk 0:00:50.8]} 29. h3
{[%clk 0:00:22.1]} 29... Ng6 {[%clk 0:00:43]} 30. Nxg6+ {[%clk 0:00:20]} 30...
hxg6 {[%clk 0:00:43.9]} 31. Rd3 {[%clk 0:00:19.5]} 31... Rc8 {[%clk 0:00:42.5]}
32. Kf1 {[%clk 0:00:17.4]} 32... Be4 {[%clk 0:00:42.4]} 33. Rd2 {[%clk
0:00:17.1]} 33... Bd5 {[%clk 0:00:39.2]} 34. c4 {[%clk 0:00:16.7]} 34... Bc6
{[%clk 0:00:38.2]} 35. Nc3 {[%clk 0:00:16.9]} 35... a6 {[%clk 0:00:37.7]} 36.
Bd3 {[%clk 0:00:14.9]} 36... Kg7 {[%clk 0:00:36.8]} 37. Be2 {[%clk 0:00:14.5]}
37... Kf8 {[%clk 0:00:31.5]} 38. f4 {[%clk 0:00:13.8]} 38... Ke7 {[%clk
0:00:31.4]} 39. Kf2 {[%clk 0:00:14]} 39... b6 {[%clk 0:00:26.9]} 40. Rd3 {[%clk
0:00:11.8]} 40... Bb7 {[%clk 0:00:23.1]} 41. Bf3 {[%clk 0:00:10.5]} 41... Bxf3
{[%clk 0:00:20.8]} 42. Kxf3 {[%clk 0:00:11.4]} 42... Rc5 {[%clk 0:00:18]} 43.
Ne4 {[%clk 0:00:10.8]} 43... Nxe4 {[%clk 0:00:17.3]} 44. Kxe4 {[%clk 0:00:11.7]}
44... b5 {[%clk 0:00:17.9]} 45. Kd4 {[%clk 0:00:11.2]} 45... Rc7 {[%clk
0:00:16.8]} 46. c5 {[%clk 0:00:11]} 46... Rd7+ {[%clk 0:00:16.9]} 47. Ke4 {[%clk
0:00:11.1]} 47... f5+ {[%clk 0:00:16.3]} 48. Ke3 {[%clk 0:00:11.5]} 48... Rc7
{[%clk 0:00:16.6]} 49. b4 {[%clk 0:00:11.8]} 49... a5 {[%clk 0:00:16.6]} 50. a3
{[%clk 0:00:12.3]} 50... axb4 {[%clk 0:00:17]} 51. axb4 {[%clk 0:00:13.2]} 51...
Ra7 {[%clk 0:00:17.3]} 52. Rb3 {[%clk 0:00:08.6]} 52... Kd7 {[%clk 0:00:16.7]}
53. Kd4 {[%clk 0:00:08.9]} 53... Kc6 {[%clk 0:00:17.1]} 54. Ke5 {[%clk
0:00:09.2]} 54... Kd7 {[%clk 0:00:16]} 55. Kf6 {[%clk 0:00:08.8]} 55... Ra8
{[%clk 0:00:14.5]} 56. Rd3+ {[%clk 0:00:07.5]} 56... Kc7 {[%clk 0:00:12.3]} 57.
Kxe6 {[%clk 0:00:08.4]} 57... Ra4 {[%clk 0:00:12.4]} 58. Rd4 {[%clk 0:00:08.2]}
58... Ra2 {[%clk 0:00:12.5]} 59. g4 {[%clk 0:00:07.7]} 59... fxg4 {[%clk
0:00:12.5]} 60. hxg4 {[%clk 0:00:08.6]} 60... Rg2 {[%clk 0:00:12.7]} 61. f5
{[%clk 0:00:09.2]} 61... gxf5 {[%clk 0:00:11.6]} 62. gxf5 {[%clk 0:00:10.1]}
62... Re2+ {[%clk 0:00:12.2]} 63. Kf7 {[%clk 0:00:10.2]} 63... Rf2 {[%clk
0:00:11.1]} 64. f6 {[%clk 0:00:10.6]} 64... Kc6 {[%clk 0:00:11]} 65. Ke7 {[%clk
0:00:10.8]} 65... Kc7 {[%clk 0:00:11.1]} 66. f7 {[%clk 0:00:11.1]} 66... Re2+
{[%clk 0:00:11.9]} 67. Kf8 {[%clk 0:00:11.4]} 67... Rf2 {[%clk 0:00:12.4]} 68.
Rg4 {[%clk 0:00:11.5]} 68... Kd7 {[%clk 0:00:11.4]} 69. Kg8 {[%clk 0:00:11.2]}
69... Ke7 {[%clk 0:00:11.2]} 70. Re4+ {[%clk 0:00:11.4]} 70... Kd7 {[%clk
0:00:11.4]} 71. f8=Q {[%clk 0:00:11.4]} 71... Rxf8+ {[%clk 0:00:11.9]} 72. Kxf8
{[%clk 0:00:11.9]} 72... Kc6 {[%clk 0:00:12.8]} 73. Ke7 {[%clk 0:00:11.9]} 73...
Kd5 {[%clk 0:00:13.4]} 74. c6 {[%clk 0:00:11.9]} 74... Kxc6 {[%clk 0:00:13.4]}
75. Re5 {[%clk 0:00:12]} 75... Kb6 {[%clk 0:00:13.5]} 76. Rc5 {[%clk 0:00:12.2]}
1-0

[Event "Late-Titled-Tuesday-Blitz-September-26-2023"]
[Site "Chess.com"]
[Date "2023.09.26"]
[Round "10"]
[White "Alexei_Gubajdullin"]
[Black "GoltsevDmitry2000"]
[Result "1-0"]
[WhiteElo "2732"]
[BlackElo "2619"]
[TimeControl "180+1"]
[EndTime "15:52:44 PDT"]
[Termination "Alexei_Gubajdullin won by checkmate"]

1. d4 {[%clk 0:03:00.9]} 1... Nf6 {[%clk 0:02:58.4]} 2. Nf3 {[%clk 0:02:58.3]}
2... e6 {[%clk 0:02:55.5]} 3. Bf4 {[%clk 0:02:59.2]} 3... b6 {[%clk 0:02:51.2]}
4. e3 {[%clk 0:02:59.8]} 4... Bb7 {[%clk 0:02:51.1]} 5. Be2 {[%clk 0:03:00.5]}
5... c5 {[%clk 0:02:51.5]} 6. O-O {[%clk 0:03:00.7]} 6... Be7 {[%clk 0:02:51.6]}
7. h3 {[%clk 0:03:01.1]} 7... O-O {[%clk 0:02:51.7]} 8. c3 {[%clk 0:03:01.6]}
8... a6 {[%clk 0:02:51.3]} 9. a4 {[%clk 0:03:01.9]} 9... d5 {[%clk 0:02:51.9]}
10. Ne5 {[%clk 0:03:01.2]} 10... Nbd7 {[%clk 0:02:51.3]} 11. Nd2 {[%clk
0:03:00.9]} 11... Nxe5 {[%clk 0:02:50.5]} 12. Bxe5 {[%clk 0:03:01.3]} 12... Nd7
{[%clk 0:02:50.7]} 13. Bg3 {[%clk 0:03:01.3]} 13... cxd4 {[%clk 0:02:50.9]} 14.
exd4 {[%clk 0:03:00.5]} 14... f5 {[%clk 0:02:47.9]} 15. Re1 {[%clk 0:02:51.7]}
15... f4 {[%clk 0:02:47.9]} 16. Bh2 {[%clk 0:02:51.9]} 16... e5 {[%clk
0:02:40.7]} 17. dxe5 {[%clk 0:02:44.4]} 17... Nxe5 {[%clk 0:02:41.6]} 18. Nf3
{[%clk 0:02:44.5]} 18... Nxf3+ {[%clk 0:02:35]} 19. Bxf3 {[%clk 0:02:44.2]}
19... a5 {[%clk 0:02:30.8]} 20. Qd2 {[%clk 0:02:42.5]} 20... Qd6 {[%clk
0:02:23.5]} 21. c4 {[%clk 0:02:33.8]} 21... Qb4 {[%clk 0:01:50.8]} 22. Bxf4
{[%clk 0:02:13.2]} 22... Rad8 {[%clk 0:01:42.4]} 23. Bg5 {[%clk 0:01:46.7]}
23... Qxd2 {[%clk 0:01:28.5]} 24. Bxd2 {[%clk 0:01:45.5]} 24... Bc5 {[%clk
0:01:28.7]} 25. Be3 {[%clk 0:01:35]} 25... d4 {[%clk 0:01:25.3]} 26. Bxb7 {[%clk
0:01:34.3]} 26... dxe3 {[%clk 0:01:25.6]} 27. fxe3 {[%clk 0:01:33.4]} 27... Rd2
{[%clk 0:01:23.5]} 28. b3 {[%clk 0:01:24.6]} 28... Rd3 {[%clk 0:01:16.8]} 29.
Kh1 {[%clk 0:01:13.5]} 29... Rxe3 {[%clk 0:01:12.3]} 30. Rxe3 {[%clk 0:01:12.4]}
30... Bxe3 {[%clk 0:01:13.2]} 31. Re1 {[%clk 0:01:11.5]} 31... Bc5 {[%clk
0:01:11.2]} 32. Bd5+ {[%clk 0:01:10.4]} 32... Kh8 {[%clk 0:01:11.1]} 33. g3
{[%clk 0:00:53.2]} 33... g6 {[%clk 0:01:03.4]} 34. h4 {[%clk 0:00:51.4]} 34...
Bf2 {[%clk 0:00:53.7]} 35. Re6 {[%clk 0:00:50.6]} 35... Bc5 {[%clk 0:00:50.2]}
36. Kg2 {[%clk 0:00:47.8]} 36... Kg7 {[%clk 0:00:45.9]} 37. g4 {[%clk
0:00:45.6]} 37... Rf2+ {[%clk 0:00:35.4]} 38. Kg3 {[%clk 0:00:45.2]} 38... Rb2
{[%clk 0:00:28.6]} 39. Rc6 {[%clk 0:00:42.6]} 39... Rxb3+ {[%clk 0:00:28.6]} 40.
Kf4 {[%clk 0:00:43]} 40... Rb1 {[%clk 0:00:08.3]} 41. Rc7+ {[%clk 0:00:40.5]}
41... Kh8 {[%clk 0:00:07]} 42. Rc8+ {[%clk 0:00:19.8]} 42... Kg7 {[%clk
0:00:07.4]} 43. g5 {[%clk 0:00:19.9]} 43... Rf1+ {[%clk 0:00:06.6]} 44. Kg3
{[%clk 0:00:17.2]} 44... Bd6+ {[%clk 0:00:05.8]} 45. Kg2 {[%clk 0:00:16.9]}
45... Rf8 {[%clk 0:00:06.5]} 46. Rc6 {[%clk 0:00:16.3]} 46... Bc5 {[%clk
0:00:04.4]} 47. Rc7+ {[%clk 0:00:16.3]} 47... Kh8 {[%clk 0:00:05]} 48. Rb7
{[%clk 0:00:16.7]} 48... Rf2+ {[%clk 0:00:04.6]} 49. Kg3 {[%clk 0:00:16.3]}
49... Rf8 {[%clk 0:00:05.5]} 50. Kg4 {[%clk 0:00:16.6]} 50... Be3 {[%clk
0:00:05.6]} 51. Rd7 {[%clk 0:00:14.7]} 51... Rf4+ {[%clk 0:00:04.8]} 52. Kg3
{[%clk 0:00:14.1]} 52... Rf8 {[%clk 0:00:05.7]} 53. Rb7 {[%clk 0:00:13.2]} 53...
Bf2+ {[%clk 0:00:03.4]} 54. Kg4 {[%clk 0:00:13]} 54... Be3 {[%clk 0:00:04.3]}
55. h5 {[%clk 0:00:12.6]} 55... Rf4+ {[%clk 0:00:04.9]} 56. Kg3 {[%clk 0:00:13]}
56... Rf8 {[%clk 0:00:05.8]} 57. h6 {[%clk 0:00:12.6]} 57... Bxg5 {[%clk
0:00:05.6]} 58. Rxb6 {[%clk 0:00:12.5]} 58... Bxh6 {[%clk 0:00:06.3]} 59. c5
{[%clk 0:00:12.6]} 59... Be3 {[%clk 0:00:06.2]} 60. Rb5 {[%clk 0:00:12.4]} 60...
Rc8 {[%clk 0:00:05]} 61. c6 {[%clk 0:00:12.6]} 61... Bd2 {[%clk 0:00:05.1]} 62.
Rb7 {[%clk 0:00:12.2]} 62... Bb4 {[%clk 0:00:03.9]} 63. Kf4 {[%clk 0:00:12]}
63... Bd6+ {[%clk 0:00:04.4]} 64. Kg5 {[%clk 0:00:11]} 64... Bc7 {[%clk
0:00:03.3]} 65. Kf6 {[%clk 0:00:10.8]} 65... h5 {[%clk 0:00:02.4]} 66. Ke6
{[%clk 0:00:10.7]} 66... h4 {[%clk 0:00:02.6]} 67. Kd7 {[%clk 0:00:10.8]} 67...
Rd8+ {[%clk 0:00:02.8]} 68. Kxc7 {[%clk 0:00:10.2]} 68... Rxd5 {[%clk
0:00:03.3]} 69. Kb6 {[%clk 0:00:09.6]} 69... Rd6 {[%clk 0:00:01.8]} 70. Kc5
{[%clk 0:00:09.2]} 70... Rd1 {[%clk 0:00:01.8]} 71. c7 {[%clk 0:00:07.5]} 71...
Rc1+ {[%clk 0:00:02.7]} 72. Kd4 {[%clk 0:00:07.6]} 72... h3 {[%clk 0:00:03.6]}
73. Rb8+ {[%clk 0:00:07.3]} 73... Kg7 {[%clk 0:00:04.5]} 74. c8=Q {[%clk
0:00:07.3]} 74... Rxc8 {[%clk 0:00:04.8]} 75. Rxc8 {[%clk 0:00:07.6]} 75... g5
{[%clk 0:00:05.4]} 76. Ke3 {[%clk 0:00:07.5]} 76... Kf6 {[%clk 0:00:05.6]} 77.
Kf3 {[%clk 0:00:07.4]} 77... Kf5 {[%clk 0:00:06.2]} 78. Kg3 {[%clk 0:00:07.5]}
78... g4 {[%clk 0:00:05.6]} 79. Rc5+ {[%clk 0:00:07.9]} 79... Ke4 {[%clk
0:00:05.7]} 80. Rxa5 {[%clk 0:00:07.9]} 80... Kd4 {[%clk 0:00:06.6]} 81. Rg5
{[%clk 0:00:07.8]} 81... Kc4 {[%clk 0:00:06.9]} 82. Rxg4+ {[%clk 0:00:08.1]}
82... Kc5 {[%clk 0:00:07.8]} 83. Kxh3 {[%clk 0:00:08.5]} 83... Kb6 {[%clk
0:00:07.5]} 84. Kg3 {[%clk 0:00:09]} 84... Ka5 {[%clk 0:00:08.4]} 85. Kf3 {[%clk
0:00:09.6]} 85... Kb6 {[%clk 0:00:09]} 86. Ke3 {[%clk 0:00:10.5]} 86... Ka5
{[%clk 0:00:09.9]} 87. Kd3 {[%clk 0:00:11.4]} 87... Kb6 {[%clk 0:00:10.8]} 88.
Kc3 {[%clk 0:00:12.1]} 88... Ka5 {[%clk 0:00:11.7]} 89. Kb3 {[%clk 0:00:12.9]}
89... Kb6 {[%clk 0:00:12.6]} 90. Kb4 {[%clk 0:00:13.4]} 90... Kc6 {[%clk
0:00:13.1]} 91. a5 {[%clk 0:00:14]} 91... Kd5 {[%clk 0:00:14]} 92. a6 {[%clk
0:00:14.2]} 92... Kc6 {[%clk 0:00:14.9]} 93. Rg6+ {[%clk 0:00:13.1]} 93... Kc7
{[%clk 0:00:14.9]} 94. Ka5 {[%clk 0:00:12.9]} 94... Kb8 {[%clk 0:00:15.5]} 95.
Rg8+ {[%clk 0:00:12.9]} 95... Ka7 {[%clk 0:00:15.8]} 96. Rg7+ {[%clk 0:00:11.9]}
96... Kb8 {[%clk 0:00:16.7]} 97. Kb6 {[%clk 0:00:11.2]} 97... Ka8 {[%clk
0:00:17.6]} 98. Rg8# {[%clk 0:00:10.8]} 1-0

[Event "Late-Titled-Tuesday-Blitz-September-26-2023"]
[Site "Chess.com"]
[Date "2023.09.26"]
[Round "10"]
[White "WPWPWP-2015"]
[Black "micke12a"]
[Result "1-0"]
[WhiteElo "2504"]
[BlackElo "2350"]
[TimeControl "180+1"]
[EndTime "15:53:06 PDT"]
[Termination "WPWPWP-2015 won by resignation"]

1. e4 {[%clk 0:03:00.9]} 1... c5 {[%clk 0:02:54]} 2. Nf3 {[%clk 0:03:00.4]} 2...
d6 {[%clk 0:02:53.5]} 3. d4 {[%clk 0:03:00.5]} 3... cxd4 {[%clk 0:02:54.4]} 4.
Nxd4 {[%clk 0:03:01]} 4... Nf6 {[%clk 0:02:55.1]} 5. Nc3 {[%clk 0:03:01.2]} 5...
g6 {[%clk 0:02:56]} 6. h3 {[%clk 0:03:00.9]} 6... Bg7 {[%clk 0:02:56.5]} 7. Be2
{[%clk 0:03:00.6]} 7... O-O {[%clk 0:02:57.1]} 8. O-O {[%clk 0:03:00.7]} 8...
Nc6 {[%clk 0:02:57.1]} 9. Be3 {[%clk 0:03:00.4]} 9... Nxd4 {[%clk 0:02:55.2]}
10. Bxd4 {[%clk 0:03:00.3]} 10... Be6 {[%clk 0:02:55.3]} 11. f4 {[%clk
0:02:57.3]} 11... Qa5 {[%clk 0:02:55]} 12. Kh2 {[%clk 0:02:54.8]} 12... Rac8
{[%clk 0:02:53.4]} 13. Rf2 {[%clk 0:02:52.7]} 13... a6 {[%clk 0:02:48.9]} 14.
Bf3 {[%clk 0:02:52.2]} 14... b5 {[%clk 0:02:48.3]} 15. a3 {[%clk 0:02:51.4]}
15... Rc4 {[%clk 0:02:43]} 16. e5 {[%clk 0:02:48.5]} 16... dxe5 {[%clk
0:02:41.1]} 17. Bxe5 {[%clk 0:02:48.5]} 17... Nd7 {[%clk 0:02:35]} 18. Bxg7
{[%clk 0:02:43.2]} 18... Kxg7 {[%clk 0:02:35.9]} 19. Be2 {[%clk 0:02:39]} 19...
Rxc3 {[%clk 0:02:19.3]} 20. Qd4+ {[%clk 0:02:37.4]} 20... f6 {[%clk 0:02:19.2]}
21. Qxc3 {[%clk 0:02:27.4]} 21... Qxc3 {[%clk 0:02:17]} 22. bxc3 {[%clk
0:02:27.4]} 22... Rc8 {[%clk 0:02:17.6]} 23. a4 {[%clk 0:02:25.2]} 23... Rxc3
{[%clk 0:02:14.8]} 24. axb5 {[%clk 0:02:25.2]} 24... axb5 {[%clk 0:02:15.7]} 25.
Bxb5 {[%clk 0:02:24.5]} 25... Nc5 {[%clk 0:02:16.3]} 26. Re1 {[%clk 0:02:14.5]}
26... Kf7 {[%clk 0:01:59.9]} 27. Ree2 {[%clk 0:02:14.1]} 27... Bc4 {[%clk
0:01:53]} 28. Bxc4+ {[%clk 0:02:11.5]} 28... Rxc4 {[%clk 0:01:53.9]} 29. Rf3
{[%clk 0:02:06.4]} 29... Ne4 {[%clk 0:01:49.8]} 30. Rfe3 {[%clk 0:01:59.7]}
30... f5 {[%clk 0:01:49.2]} 31. Ra3 {[%clk 0:01:59]} 31... h5 {[%clk 0:01:47.9]}
32. g3 {[%clk 0:01:57.3]} 32... h4 {[%clk 0:01:39.8]} 33. gxh4 {[%clk
0:01:54.4]} 33... Nf6 {[%clk 0:01:40.3]} 34. Rf3 {[%clk 0:01:51.7]} 34... Nd5
{[%clk 0:01:36.7]} 35. Kg3 {[%clk 0:01:50.8]} 35... Nc3 {[%clk 0:01:32.5]} 36.
Re1 {[%clk 0:01:23.8]} 36... Ne4+ {[%clk 0:01:31.4]} 37. Kg2 {[%clk 0:01:24]}
37... Rxc2+ {[%clk 0:01:31.2]} 38. Kg1 {[%clk 0:01:24.1]} 38... Rc8 {[%clk
0:01:25.7]} 39. Rd1 {[%clk 0:01:18.6]} 39... Rh8 {[%clk 0:01:24.5]} 40. Kf1
{[%clk 0:01:17.5]} 40... Rxh4 {[%clk 0:01:24.1]} 41. Ke2 {[%clk 0:01:17]} 41...
Rh8 {[%clk 0:01:09.1]} 42. Rc1 {[%clk 0:01:15.9]} 42... Ra8 {[%clk 0:01:04.8]}
43. Rb3 {[%clk 0:01:07]} 43... Ra2+ {[%clk 0:01:03.7]} 44. Ke3 {[%clk
0:01:06.4]} 44... Rh2 {[%clk 0:01:03]} 45. Kd4 {[%clk 0:01:04.6]} 45... Nd2
{[%clk 0:00:56.5]} 46. Rd3 {[%clk 0:00:59.9]} 46... Ne4 {[%clk 0:00:55.3]} 47.
Re3 {[%clk 0:00:53]} 47... Rf2 {[%clk 0:00:52.2]} 48. Ke5 {[%clk 0:00:52]} 48...
Nf6 {[%clk 0:00:45.3]} 49. Rc7 {[%clk 0:00:48]} 49... Nh5 {[%clk 0:00:43.5]} 50.
Rc4 {[%clk 0:00:41.6]} 50... Ra2 {[%clk 0:00:35.7]} 51. Kd5 {[%clk 0:00:40.2]}
51... Ra5+ {[%clk 0:00:33.9]} 52. Kc6 {[%clk 0:00:38.2]} 52... Nf6 {[%clk
0:00:28.7]} 53. Re5 {[%clk 0:00:34.3]} 53... Ra3 {[%clk 0:00:27.6]} 54. h4
{[%clk 0:00:27.8]} 54... Rh3 {[%clk 0:00:27.3]} 55. Ra4 {[%clk 0:00:25.4]} 55...
Rxh4 {[%clk 0:00:18]} 56. Kc7 {[%clk 0:00:18.6]} 56... g5 {[%clk 0:00:13]} 57.
Kd8 {[%clk 0:00:17.3]} 57... Rxf4 {[%clk 0:00:12.1]} 58. Rxe7+ {[%clk
0:00:16.3]} 58... Kg6 {[%clk 0:00:12.7]} 59. Ra6 {[%clk 0:00:15.9]} 59... Rd4+
{[%clk 0:00:10.6]} 60. Kc7 {[%clk 0:00:15.6]} 60... Rc4+ {[%clk 0:00:05]} 61.
Kb7 {[%clk 0:00:15.3]} 61... Rb4+ {[%clk 0:00:05.3]} 62. Ka7 {[%clk 0:00:15.2]}
62... g4 {[%clk 0:00:01.9]} 63. Ree6 {[%clk 0:00:14.7]} 63... Kg5 {[%clk
0:00:02.4]} 64. Rxf6 {[%clk 0:00:15]} 64... g3 {[%clk 0:00:02.5]} 65. Rg6+
{[%clk 0:00:15]} 65... Kf4 {[%clk 0:00:02.9]} 66. Ra3 {[%clk 0:00:14.2]} 66...
Re4 {[%clk 0:00:01.6]} 67. Raxg3 {[%clk 0:00:13]} 67... Re7+ {[%clk 0:00:02.5]}
68. Kb8 {[%clk 0:00:11.5]} 68... Re8+ {[%clk 0:00:02.8]} 69. Kc7 {[%clk
0:00:11.8]} 69... Re7+ {[%clk 0:00:03.2]} 70. Kd8 {[%clk 0:00:12.2]} 70... Re3
{[%clk 0:00:02.9]} 71. Rg2 {[%clk 0:00:10.5]} 71... Rd3+ {[%clk 0:00:02.1]} 72.
Ke7 {[%clk 0:00:10.2]} 72... Ra3 {[%clk 0:00:02]} 73. R6g5 {[%clk 0:00:09.1]}
73... Ra7+ {[%clk 0:00:01.4]} 74. Ke6 {[%clk 0:00:08.9]} 74... Ra6+ {[%clk
0:00:01.9]} 75. Kd5 {[%clk 0:00:09.2]} 75... Ra5+ {[%clk 0:00:02.4]} 76. Kc4
{[%clk 0:00:09.5]} 76... Ra4+ {[%clk 0:00:01.8]} 77. Kb3 {[%clk 0:00:09.4]}
77... Ra8 {[%clk 0:00:01.7]} 78. Kc3 {[%clk 0:00:09.1]} 78... Kf3 {[%clk
0:00:02]} 79. R5g3+ {[%clk 0:00:08.1]} 79... Kf4 {[%clk 0:00:02.1]} 80. Rg7
{[%clk 0:00:07.1]} 80... Rc8+ {[%clk 0:00:02.8]} 81. Kd3 {[%clk 0:00:06.9]}
81... Rd8+ {[%clk 0:00:02.6]} 82. Ke2 {[%clk 0:00:07]} 82... Re8+ {[%clk
0:00:03.2]} 83. Kf1 {[%clk 0:00:07.3]} 83... Ra8 {[%clk 0:00:04.1]} 84. Rf2+
{[%clk 0:00:07]} 84... Ke4 {[%clk 0:00:04]} 85. Re7+ {[%clk 0:00:07.3]} 85...
Kd3 {[%clk 0:00:04.7]} 86. Rxf5 {[%clk 0:00:07.4]} 86... Ra1+ {[%clk 0:00:05.5]}
87. Kf2 {[%clk 0:00:07.7]} 87... Ra2+ {[%clk 0:00:06.2]} 88. Kf3 {[%clk
0:00:08]} 88... Ra1 {[%clk 0:00:06.2]} 89. Rd5+ {[%clk 0:00:08]} 89... Kc4
{[%clk 0:00:06.7]} 90. Rd8 {[%clk 0:00:08.1]} 90... Rf1+ {[%clk 0:00:07]} 91.
Kg2 {[%clk 0:00:08.1]} 91... Rf6 {[%clk 0:00:06.4]} 92. Rc7+ {[%clk 0:00:08]}
92... Kb5 {[%clk 0:00:06.8]} 93. Rb8+ {[%clk 0:00:07.9]} 93... Ka6 {[%clk
0:00:06.8]} 94. Rc1 {[%clk 0:00:07.9]} 94... Rg6+ {[%clk 0:00:06.7]} 95. Kf3
{[%clk 0:00:07.8]} 95... Ka7 {[%clk 0:00:06.3]} 96. Rb2 {[%clk 0:00:07.1]} 96...
Rf6+ {[%clk 0:00:06.9]} 97. Ke4 {[%clk 0:00:07.1]} 97... Re6+ {[%clk 0:00:07.1]}
98. Kd5 {[%clk 0:00:07.4]} 98... Ra6 {[%clk 0:00:06.3]} 99. Rcb1 {[%clk
0:00:07.1]} 99... Ra5+ {[%clk 0:00:06.2]} 100. Kc6 {[%clk 0:00:07.2]} 100... Ra3
{[%clk 0:00:05.5]} 101. Rb7+ {[%clk 0:00:06.2]} 101... Ka8 {[%clk 0:00:05.9]}
102. Rb8+ {[%clk 0:00:06.3]} 102... Ka7 {[%clk 0:00:06.4]} 103. R1b7+ {[%clk
0:00:06.1]} 1-0

[Event "Late-Titled-Tuesday-Blitz-September-26-2023"]
[Site "Chess.com"]
[Date "2023.09.26"]
[Round "11"]
[White "The_Straightforward_Rook"]
[Black "ferdipy"]
[Result "1-0"]
[WhiteElo "2543"]
[BlackElo "2361"]
[TimeControl "180+1"]
[EndTime "15:56:45 PDT"]
[Termination "The_Straightforward_Rook won by resignation"]

1. d4 {[%clk 0:02:56.1]} 1... e5 {[%clk 0:02:59.9]} 2. dxe5 {[%clk 0:02:55.3]}
2... d6 {[%clk 0:03:00.3]} 3. Nf3 {[%clk 0:02:51.6]} 3... Nc6 {[%clk 0:02:59.9]}
4. Bf4 {[%clk 0:02:35.7]} 4... Bg4 {[%clk 0:02:58.5]} 5. exd6 {[%clk 0:02:32]}
5... Qf6 {[%clk 0:02:51.9]} 6. e3 {[%clk 0:02:26.8]} 6... O-O-O {[%clk
0:02:48.2]} 7. Nbd2 {[%clk 0:02:21.4]} 7... Bxd6 {[%clk 0:02:47.2]} 8. Bg5
{[%clk 0:02:16.4]} 8... Qxb2 {[%clk 0:02:45.5]} 9. Bxd8 {[%clk 0:02:13.2]} 9...
Nxd8 {[%clk 0:02:45.6]} 10. Be2 {[%clk 0:02:09.8]} 10... Nf6 {[%clk 0:02:24.5]}
11. O-O {[%clk 0:02:09.3]} 11... Ne6 {[%clk 0:02:17.2]} 12. Rb1 {[%clk
0:02:04.5]} 12... Qxa2 {[%clk 0:02:14.7]} 13. Ra1 {[%clk 0:02:00.5]} 13... Qb2
{[%clk 0:02:12.2]} 14. Nc4 {[%clk 0:01:58]} 14... Qc3 {[%clk 0:02:06.8]} 15.
Nxd6+ {[%clk 0:01:43.9]} 15... cxd6 {[%clk 0:02:07.7]} 16. Rxa7 {[%clk 0:01:44]}
16... Kb8 {[%clk 0:02:03.5]} 17. Qa1 {[%clk 0:01:36.7]} 17... Nc7 {[%clk
0:01:51.9]} 18. Qxc3 {[%clk 0:01:33.8]} 1-0

[Event "Late-Titled-Tuesday-Blitz-September-26-2023"]
[Site "Chess.com"]
[Date "2023.09.26"]
[Round "11"]
[White "ejalmedina"]
[Black "AsaHoffmann"]
[Result "1-0"]
[WhiteElo "2345"]
[BlackElo "2392"]
[TimeControl "180+1"]
[EndTime "15:57:07 PDT"]
[Termination "ejalmedina won by resignation"]

1. d4 {[%clk 0:03:00.9]} 1... Nf6 {[%clk 0:02:57.9]} 2. c4 {[%clk 0:03:01]} 2...
c5 {[%clk 0:02:54.4]} 3. d5 {[%clk 0:03:00.1]} 3... e5 {[%clk 0:02:54.3]} 4. Nc3
{[%clk 0:02:56.4]} 4... d6 {[%clk 0:02:54.2]} 5. e4 {[%clk 0:02:52.1]} 5... Be7
{[%clk 0:02:54.3]} 6. Bd3 {[%clk 0:02:51]} 6... Nbd7 {[%clk 0:02:54]} 7. Be3
{[%clk 0:02:45.6]} 7... Nf8 {[%clk 0:02:53.8]} 8. f3 {[%clk 0:02:43]} 8... Ng6
{[%clk 0:02:53.6]} 9. Nge2 {[%clk 0:02:42.9]} 9... Nh5 {[%clk 0:02:53.4]} 10.
Qd2 {[%clk 0:02:34.1]} 10... h6 {[%clk 0:02:51.8]} 11. g3 {[%clk 0:02:32.3]}
11... Bg5 {[%clk 0:02:50.8]} 12. f4 {[%clk 0:02:31.6]} 12... exf4 {[%clk
0:02:50.1]} 13. gxf4 {[%clk 0:02:31.3]} 13... Bh4+ {[%clk 0:02:40.5]} 14. Kd1
{[%clk 0:02:29.6]} 14... a6 {[%clk 0:02:32.7]} 15. a4 {[%clk 0:02:22.6]} 15...
b6 {[%clk 0:02:32.4]} 16. Kc2 {[%clk 0:02:22.2]} 16... Bd7 {[%clk 0:02:32.2]}
17. Rhg1 {[%clk 0:02:05.3]} 17... Bf6 {[%clk 0:02:30.9]} 18. e5 {[%clk
0:02:01.2]} 18... dxe5 {[%clk 0:02:30.1]} 19. Rxg6 {[%clk 0:01:59.9]} 19... fxg6
{[%clk 0:02:29]} 20. Bxg6+ {[%clk 0:01:59.6]} 20... Kf8 {[%clk 0:02:27.7]} 21.
Bxh5 {[%clk 0:01:59.3]} 21... Bf5+ {[%clk 0:02:22.7]} 22. Kb3 {[%clk 0:01:56.1]}
22... Qd6 {[%clk 0:02:20.1]} 23. Ng3 {[%clk 0:01:49.4]} 23... Bh7 {[%clk
0:02:17.8]} 24. Nge4 {[%clk 0:01:46.9]} 24... Qe7 {[%clk 0:02:17.3]} 25. Rf1
{[%clk 0:01:39.3]} 25... b5 {[%clk 0:02:14.3]} 26. Bxc5 {[%clk 0:01:38.1]} 26...
bxc4+ {[%clk 0:02:10.7]} 27. Ka2 {[%clk 0:01:27.6]} 1-0